fUSD/lending_fUSD_20250301
["ID","MTS","AMOUNT","RATE_DAILY","PERIOD"]
[354945875,1740838238845,-658.74,0.00027671,2]
[354945876,1740838238854,-1104.26,0.00027671,2]
[354945879,1740838238864,-602.48,0.00027671,2]
[354945882,1740838238874,-593.63454536,0.00027671,2]
[354945884,1740838238884,-503.47,0.00027671,2]
[354945886,1740838238894,-500.0,0.00027671,2]
[354945889,1740838238904,-506.74,0.00027671,2]
[354945892,1740838238913,-500.0,0.00027671,2]
[354945894,1740838238922,-720.95,0.00027671,2]
[354945895,1740838238932,-630.29,0.00027671,2]
[354945897,1740838238941,-747.06,0.00027671,2]
[354945899,1740838238951,-500.0,0.00027671,2]
[354945900,1740838238961,-502.71635875,0.00027671,2]
[354945902,1740838238971,-612.82,0.00027671,2]
[354945904,1740838238981,-881.64,0.00027671,2]
[354945906,1740838238990,-626.1,0.00027671,2]
[354945907,1740838239000,-500.0,0.00027671,2]
[354945909,1740838239009,-1190.98,0.00027671,2]
[354945911,1740838239019,-500.0,0.00027671,2]
[354945913,1740838239030,-600.85,0.00027671,2]
[354945915,1740838239039,-555.11,0.00027671,2]
[354945916,1740838239049,-527.84,0.00027671,2]
[354945918,1740838239059,-810.84,0.00027671,2]
[354945920,1740838239068,-645.68,0.00027671,2]
[354945922,1740838239078,-500.0,0.00027671,2]
[354945923,1740838239087,-500.0,0.00027671,2]
[354945925,1740838239096,-721.69,0.00027671,2]
[354945927,1740838239106,-755.32,0.00027671,2]
[354945929,1740838239115,-1383.59,0.00027671,2]
[354945930,1740838239124,-359.30155956,0.00027671,2]
[354945933,1740838239149,-140.69844044,0.00027671,2]
[354945935,1740838239160,-500.0,0.00027671,2]
[354945937,1740838239169,-644.31,0.00027671,2]
[354945939,1740838239179,-806.56,0.00027671,2]
[354945941,1740838239189,-527.05,0.00027671,2]
[354945943,1740838239201,-606.14,0.00027671,2]
[354945945,1740838239211,-538.87,0.00027671,2]
[354945946,1740838239221,-300.0,0.00027671,2]
[354945948,1740838239231,-500.0,0.00027671,2]
[354945950,1740838239240,-1045.24,0.00027671,2]
[354945952,1740838239251,-500.0,0.00027671,2]
[354945953,1740838239260,-980.17,0.00027671,2]
[354945955,1740838239270,-999.63,0.00027671,2]
[354945957,1740838239279,-500.0,0.00027671,2]
[354945959,1740838239289,-422.59583428,0.00027671,2]
[354945961,1740838239298,-500.0,0.00027671,2]
[354945962,1740838239308,-502.21,0.00027671,2]
[354945964,1740838239318,-695.81,0.00027671,2]
[354945966,1740838239327,-423.2852045,0.00027671,2]
[354945969,1740838239348,-394.6747955,0.00027671,2]
[354945971,1740838239358,-500.0,0.00027671,2]
[354945973,1740838239368,-656.2428338,0.00027671,2]
[354945974,1740838239379,-209.3871662,0.00027671,2]
[354945976,1740838239389,-112.85885627,0.00027671,2]
[354945978,1740838239400,-387.14114373,0.00027671,2]
[354945980,1740838239411,-631.18,0.00027671,2]
[354945982,1740838239421,-724.87,0.00027671,2]
[354945984,1740838239431,-791.85,0.00027671,2]
[354945986,1740838239441,-928.45,0.00027671,2]
[354945988,1740838239451,-1117.72,0.00027671,2]
[354945989,1740838239461,-500.0,0.00027671,2]
[354945991,1740838239472,-992.89,0.00027671,2]
[354945993,1740838239482,-500.0,0.00027671,2]
[354945995,1740838239493,-500.0,0.00027671,2]
[354945997,1740838239503,-755.18,0.00027671,2]
[354945999,1740838239513,-1111.64,0.00027671,2]
[354946001,1740838239523,-726.19,0.00027671,2]
[354946003,1740838239533,-500.0,0.00027671,2]
[354946005,1740838239543,-185.96333039,0.00027671,2]
[354946007,1740838239555,-250.35789999,0.00027671,2]
[354946009,1740838239567,-373.30876962,0.00027671,2]
[354946011,1740838239576,-436.65441038,0.00027671,2]
[354946013,1740838239588,-311.70558962,0.00027671,2]
[354946015,1740838239598,-500.0,0.00027671,2]
[354946016,1740838239610,-574.87,0.00027671,2]
[354946018,1740838239619,-457.37346067,0.00027671,2]
[354946021,1740838239636,-85.44653933,0.00027671,2]
[354946023,1740838239645,-491.8722185,0.00027671,2]
[354946025,1740838239658,-44.6077815,0.00027671,2]
[354946027,1740838239667,-500.0,0.00027671,2]
[354946028,1740838239677,-99.64079863,0.00027671,2]
[354946031,1740838239689,-400.35920137,0.00027671,2]
[354946032,1740838239699,-500.0,0.00027671,2]
[354946034,1740838239709,-500.0,0.00027671,2]
[354946036,1740838239720,-191.23523923,0.00027671,2]
[354946100,1740838240407,-506.37,0.00027397,2]
[354946102,1740838240418,-471.45476077,0.00027671,2]
[354946104,1740838240428,-889.39,0.00027671,2]
[354946106,1740838240438,-500.0,0.00027671,2]
[354946108,1740838240448,-725.05,0.00027671,2]
[354946110,1740838240459,-517.46,0.00027671,2]
[354946112,1740838240470,-1179.59,0.00027671,2]
[354946114,1740838240480,-500.0,0.00027671,2]
[354946116,1740838240490,-310.74897353,0.00027671,2]
[354946118,1740838240503,-655.05102647,0.00027671,2]
[354946120,1740838240513,-644.51,0.00027671,2]
[354946121,1740838240522,-512.48,0.00027671,2]
[354946123,1740838240532,-1279.58,0.00027671,2]
[354946125,1740838240542,-872.58,0.00027671,2]
[354946127,1740838240552,-496.53990853,0.00027671,2]
[354946129,1740838240562,-1347.37,0.00027671,2]
[354946131,1740838240572,-500.0,0.00027671,2]
[354946133,1740838240582,-588.99,0.00027671,2]
[354946135,1740838240592,-500.0,0.00027671,2]
[354946137,1740838240605,-527.7,0.00027671,2]
[354946139,1740838240615,-741.03,0.00027671,2]
[354946140,1740838240627,-609.76,0.00027671,2]
[354946142,1740838240639,-2597.484083,0.00027671,2]
[354946144,1740838240648,-500.0,0.00027671,2]
[354946146,1740838240658,-500.0,0.00027671,2]
[354946148,1740838240668,-650.37,0.00027671,2]
[354946150,1740838240680,-541.66,0.00027671,2]
[354946152,1740838240690,-809.22,0.00027671,2]
[354946154,1740838240700,-908.98,0.00027671,2]
[354946156,1740838240710,-500.0,0.00027671,2]
[354946158,1740838240723,-500.0,0.00027671,2]
[354946176,1740838240971,-355.78062111,0.00027671,2]
[354946177,1740838240982,-500.0,0.00027671,2]
[354946178,1740838240992,-788.13,0.00027671,2]
[354946179,1740838241002,-581.55,0.00027671,2]
[354946180,1740838241012,-777.72,0.00027671,2]
[354946181,1740838241021,-565.86,0.00027671,2]
[354946182,1740838241031,-763.99,0.00027671,2]
[354946183,1740838241041,-500.0,0.00027671,2]
[354946184,1740838241051,-500.0,0.00027671,2]
[354946185,1740838241061,-500.0,0.00027671,2]
[354946186,1740838241070,-629.32,0.00027671,2]
[354946187,1740838241080,-631.05,0.00027671,2]
[354946188,1740838241090,-1130.27,0.00027671,2]
[354946189,1740838241100,-270.10431858,0.00027671,2]
[354946190,1740838241110,-500.0,0.00027671,2]
[354946191,1740838241120,-500.0,0.00027671,2]
[354946192,1740838241130,-448.3103353,0.00027671,2]
[354946193,1740838241139,-500.0,0.00027671,2]
[354946194,1740838241149,-522.5,0.00027671,2]
[354946195,1740838241160,-2003.353535,0.00027671,2]
[354946196,1740838241169,-500.0,0.00027671,2]
[354946197,1740838241179,-1166.97,0.00027671,2]
[354946198,1740838241189,-500.0,0.00027671,2]
[354946199,1740838241198,-514.42,0.00027671,2]
[354946200,1740838241209,-773.7,0.00027671,2]
[354946201,1740838241220,-628.3,0.00027671,2]
[354946202,1740838241230,-624.02,0.00027671,2]
[354946203,1740838241239,-881.61,0.00027671,2]
[354946204,1740838241249,-574.36,0.00027671,2]
[354946205,1740838241259,-1345.32,0.00027671,2]
[354946206,1740838241269,-699.03,0.00027671,2]
[354946207,1740838241279,-832.36,0.00027671,2]
[354946208,1740838241289,-500.0,0.00027671,2]
[354946209,1740838241299,-599.35,0.00027671,2]
[354946210,1740838241308,-967.96,0.00027671,2]
[354946211,1740838241318,-500.0,0.00027671,2]
[354946212,1740838241327,-500.0,0.00027671,2]
[354946213,1740838241337,-316.61310254,0.00027671,2]
[354946214,1740838241346,-841.05,0.00027671,2]
[354946215,1740838241355,-500.0,0.00027671,2]
[354946216,1740838241365,-1362.66,0.00027671,2]
[354946218,1740838241374,-582.48,0.00027671,2]
[354946219,1740838241383,-500.0,0.00027671,2]
[354946220,1740838241393,-500.0,0.00027671,2]
[354946222,1740838241403,-786.87,0.00027671,2]
[354946223,1740838241412,-1070.62,0.00027671,2]
[354946225,1740838241423,-802.62,0.00027671,2]
[354946227,1740838241433,-1362.76,0.00027671,2]
[354946229,1740838241443,-570.47,0.00027671,2]
[354946231,1740838241452,-668.47,0.00027671,2]
[354946233,1740838241462,-500.0,0.00027671,2]
[354946235,1740838241473,-698.6,0.00027671,2]
[354946237,1740838241482,-3115.62,0.00027671,2]
[354946238,1740838241492,-500.0,0.00027671,2]
[354946241,1740838241502,-500.0,0.00027671,2]
[354946243,1740838241512,-924.56,0.00027671,2]
[354946245,1740838241521,-728.35,0.00027671,2]
[354946247,1740838241532,-500.0,0.00027671,2]
[354946249,1740838241541,-612.07,0.00027671,2]
[354946250,1740838241550,-1158.6,0.00027671,2]
[354946252,1740838241560,-852.98,0.00027671,2]
[354946255,1740838241570,-652.51,0.00027671,2]
[354946257,1740838241579,-930.37,0.00027671,2]
[354946258,1740838241589,-551.31,0.00027671,2]
[354946261,1740838241600,-572.88,0.00027671,2]
[354946263,1740838241610,-960.67,0.00027671,2]
[354946265,1740838241620,-1009.65,0.00027671,2]
[354946267,1740838241629,-670.64,0.00027671,2]
[354946269,1740838241641,-621.8,0.00027671,2]
[354946271,1740838241651,-500.0,0.00027671,2]
[354946273,1740838241660,-500.0,0.00027671,2]
[354946275,1740838241670,-903.51,0.00027671,2]
[354946277,1740838241681,-694.15,0.00027671,2]
[354946279,1740838241691,-500.0,0.00027671,2]
[354946281,1740838241701,-1091.72,0.00027671,2]
[354946283,1740838241710,-534.97,0.00027671,2]
[354946285,1740838241721,-1180.54,0.00027671,2]
[354946287,1740838241731,-500.0,0.00027671,2]
[354946289,1740838241741,-644.85,0.00027671,2]
[354946291,1740838241750,-559.09,0.00027671,2]
[354946293,1740838241760,-562.59,0.00027671,2]
[354946295,1740838241769,-792.67,0.00027671,2]
[354946297,1740838241779,-815.11,0.00027671,2]
[354946299,1740838241789,-320.17919334,0.00027671,2]
[354946301,1740838241799,-1082.79,0.00027671,2]
[354946303,1740838241809,-1055.02,0.00027671,2]
[354946305,1740838241819,-500.0,0.00027671,2]
[354946307,1740838241829,-711.86,0.00027671,2]
[354946309,1740838241838,-500.0,0.00027671,2]
[354946311,1740838241848,-500.0,0.00027671,2]
[354946313,1740838241857,-500.0,0.00027671,2]
[354946315,1740838241867,-1666.76,0.00027671,2]
[354946317,1740838241876,-500.0,0.00027671,2]
[354946319,1740838241885,-765.83,0.00027671,2]
[354946321,1740838241895,-1507.32,0.00027671,2]
[354946323,1740838241904,-500.0,0.00027671,2]
[354946325,1740838241914,-561.84,0.00027671,2]
[354946327,1740838241923,-579.06,0.00027671,2]
[354946329,1740838241934,-859.38,0.00027671,2]
[354946331,1740838241945,-805.52,0.00027671,2]
[354946333,1740838241954,-602.98,0.00027671,2]
[354946336,1740838241964,-500.0,0.00027671,2]
[354946338,1740838241974,-500.0,0.00027671,2]
[354946340,1740838241983,-960.03,0.00027671,2]
[354946342,1740838241993,-500.0,0.00027671,2]
[354946344,1740838242002,-973.73,0.00027671,2]
[354946346,1740838242013,-924.74,0.00027671,2]
[354946348,1740838242024,-3492.81,0.00027671,2]
[354946350,1740838242033,-1373.15,0.00027671,2]
[354946352,1740838242043,-220.87680879,0.00027671,2]
[354946354,1740838242052,-1073.12,0.00027671,2]
[354946356,1740838242062,-1135.88,0.00027671,2]
[354946358,1740838242071,-500.0,0.00027671,2]
[354946360,1740838242081,-500.0,0.00027671,2]
[354946362,1740838242092,-1027.26,0.00027671,2]
[354946364,1740838242101,-500.0,0.00027671,2]
[354946366,1740838242111,-1260.8,0.00027671,2]
[354946367,1740838242121,-558.67,0.00027671,2]
[354946370,1740838242131,-959.11,0.00027671,2]
[354946371,1740838242141,-873.56,0.00027671,2]
[354946373,1740838242151,-573.74,0.00027671,2]
[354946375,1740838242161,-739.38,0.00027671,2]
[354946377,1740838242171,-1144.39,0.00027671,2]
[354946379,1740838242180,-752.83,0.00027671,2]
[354946381,1740838242190,-2772.78,0.00027671,2]
[354946383,1740838242199,-1111.14,0.00027671,2]
[354946385,1740838242209,-579.52,0.00027671,2]
[354946387,1740838242219,-1140.24,0.00027671,2]
[354946389,1740838242229,-965.19,0.00027671,2]
[354946391,1740838242239,-500.0,0.00027671,2]
[354946393,1740838242249,-1461.37,0.00027671,2]
[354946395,1740838242259,-6175.24,0.00027671,2]
[354946397,1740838242268,-500.0,0.00027671,2]
[354946399,1740838242278,-1702.96,0.00027671,2]
[354946401,1740838242287,-500.0,0.00027671,2]
[354946403,1740838242298,-1607.75,0.00027671,2]
[354946405,1740838242308,-692.11,0.00027671,2]
[354946407,1740838242318,-1403.06,0.00027671,2]
[354946409,1740838242328,-1154.81,0.00027671,2]
[354946411,1740838242338,-500.0,0.00027671,2]
[354946413,1740838242348,-1986.25,0.00027671,2]
[354946416,1740838242358,-1523.59,0.00027671,2]
[354946418,1740838242369,-1221.88,0.00027671,2]
[354946420,1740838242379,-500.0,0.00027671,2]
[354946422,1740838242389,-866.18,0.00027671,2]
[354946424,1740838242399,-575.89621967,0.00027671,2]
[354946426,1740838242408,-614.83,0.00027671,2]
[354946428,1740838242418,-667.76,0.00027671,2]
[354946430,1740838242428,-500.0,0.00027671,2]
[354946432,1740838242438,-884.97,0.00027671,2]
[354946434,1740838242447,-588.32,0.00027671,2]
[354946436,1740838242458,-500.0,0.00027671,2]
[354946438,1740838242470,-541.9,0.00027671,2]
[354946440,1740838242480,-500.0,0.00027671,2]
[354946442,1740838242490,-661.2,0.00027671,2]
[354946444,1740838242500,-3143.31,0.00027671,2]
[354946446,1740838242509,-525.57,0.00027671,2]
[354946448,1740838242519,-500.0,0.00027671,2]
[354946450,1740838242529,-500.0,0.00027671,2]
[354946452,1740838242539,-619.24,0.00027671,2]
[354946454,1740838242549,-1912.72,0.00027671,2]
[354946456,1740838242558,-2052.43,0.00027671,2]
[354946458,1740838242568,-1327.53,0.00027671,2]
[354946460,1740838242578,-1395.29,0.00027671,2]
[354946462,1740838242588,-141.70849413,0.00027671,2]
[354946493,1740838242898,-268.25522138,0.00027671,2]
[354946496,1740838242910,-119.31415663,0.00027671,2]
[354946498,1740838242919,-158.80333357,0.00027671,2]
[354946500,1740838242936,-809.76666643,0.00027671,2]
[354946502,1740838242945,-1870.47,0.00027671,2]
[354946504,1740838242955,-630.73,0.00027671,2]
[354946506,1740838242964,-916.72089227,0.00027671,2]
[354946508,1740838242977,-1449.61910773,0.00027671,2]
[354946510,1740838242986,-987.35023866,0.00027671,2]
[354946512,1740838242998,-939.3309963,0.00027671,2]
[354946515,1740838243010,-55.11876504,0.00027671,2]
[354946517,1740838243021,-672.8409035,0.00027671,2]
[354946519,1740838243033,-23.5790965,0.00027671,2]
[354946521,1740838243042,-1402.72,0.00027671,2]
[354946523,1740838243052,-604.62,0.00027671,2]
[354946525,1740838243061,-500.0,0.00027671,2]
[354946527,1740838243071,-1312.79,0.00027671,2]
[354946529,1740838243081,-1615.21,0.00027671,2]
[354946531,1740838243090,-500.0,0.00027671,2]
[354946532,1740838243100,-1855.95,0.00027671,2]
[354946534,1740838243109,-2392.11,0.00027671,2]
[354946536,1740838243119,-1459.07,0.00027671,2]
[354946538,1740838243128,-248.31608607,0.00027671,2]
[354946540,1740838243138,-1229.49545698,0.00027671,2]
[354946542,1740838243150,-339.30327672,0.00027671,2]
[354946545,1740838243165,-367.2712663,0.00027671,2]
[354946547,1740838243175,-500.0,0.00027671,2]
[354946549,1740838243185,-1089.86,0.00027671,2]
[354946551,1740838243194,-943.02,0.00027671,2]
[354946553,1740838243203,-1188.88,0.00027671,2]
[354946555,1740838243213,-1424.02,0.00027671,2]
[354946557,1740838243223,-712.72,0.00027671,2]
[354946560,1740838243232,-500.0,0.00027671,2]
[354946562,1740838243242,-500.0,0.00027671,120]
[354946565,1740838243251,-626.67,0.00027671,2]
[354946568,1740838243261,-972.22,0.00027671,2]
[354946571,1740838243271,-2132.45,0.00027671,2]
[354946574,1740838243281,-2017.47,0.00027671,2]
[354946578,1740838243290,-1048.48,0.00027671,2]
[354946583,1740838243299,-977.03,0.00027671,2]
[354946588,1740838243308,-645.41,0.00027671,2]
[354946592,1740838243319,-500.0,0.00027671,2]
[354946596,1740838243328,-577.56724501,0.00027671,2]
[354946601,1740838243338,-1094.07,0.00027671,2]
[354946606,1740838243348,-1938.02,0.00027671,2]
[354946609,1740838243357,-689.7,0.00027671,2]
[354946612,1740838243367,-1765.35,0.00027671,2]
[354946615,1740838243376,-500.0,0.00027671,2]
[354946617,1740838243386,-871.41,0.00027671,2]
[354946619,1740838243395,-1081.87,0.00027671,2]
[354946620,1740838243405,-500.0,0.00027671,2]
[354946624,1740838243414,-582.15,0.00027671,2]
[354946627,1740838243423,-508.68,0.00027671,2]
[354946630,1740838243433,-4101.02,0.00027671,2]
[354946632,1740838243443,-2749.18,0.00027671,2]
[354946634,1740838243453,-500.0,0.00027671,2]
[354946636,1740838243462,-1525.2,0.00027671,2]
[354946638,1740838243472,-1290.63,0.00027671,2]
[354946640,1740838243482,-696.5,0.00027671,2]
[354946642,1740838243492,-1181.46,0.00027671,2]
[354946644,1740838243502,-500.0,0.00027671,2]
[354946646,1740838243511,-500.0,0.00027671,2]
[354946648,1740838243521,-1012.03,0.00027671,2]
[354946650,1740838243530,-643.48,0.00027671,2]
[354946652,1740838243540,-1992.61,0.00027671,2]
[354946654,1740838243549,-726.69,0.00027671,2]
[354946656,1740838243558,-500.0,0.00027671,2]
[354946658,1740838243567,-529.82,0.00027671,2]
[354946660,1740838243576,-500.0,0.00027671,2]
[354946662,1740838243586,-531.63,0.00027671,2]
[354946664,1740838243596,-1071.46,0.00027671,2]
[354946666,1740838243609,-1050.69,0.00027671,2]
[354946668,1740838243619,-1023.82,0.00027671,2]
[354946670,1740838243628,-1290.69,0.00027671,2]
[354946672,1740838243639,-1267.77,0.00027671,2]
[354946674,1740838243648,-834.44,0.00027671,2]
[354946676,1740838243658,-1964.82,0.00027671,2]
[354946678,1740838243667,-746.87,0.00027671,2]
[354946702,1740838243891,-1242.94,0.00027671,2]
[354946705,1740838243902,-567.83,0.00027671,2]
[354946707,1740838243912,-1369.29,0.00027671,2]
[354946709,1740838243921,-1350.19,0.00027671,2]
[354946710,1740838243932,-15515.5773602,0.00027671,2]
[354946731,1740838244122,-818.4626398,0.00027671,2]
[354946733,1740838244132,-504.62,0.00027671,2]
[354946735,1740838244142,-18.4250602,0.00027671,2]
[354946737,1740838244154,-555.3949398,0.00027671,2]
[354946739,1740838244164,-718.24214618,0.00027671,2]
[354946741,1740838244175,-83.29785382,0.00027671,2]
[354946743,1740838244185,-214.530818,0.00027671,2]
[354946746,1740838244196,-285.469182,0.00027671,2]
[354946748,1740838244207,-1222.19,0.00027671,2]
[354946750,1740838244217,-680.17,0.00027671,2]
[354946752,1740838244226,-512.9,0.00027671,2]
[354946754,1740838244236,-929.58,0.00027671,2]
[354946756,1740838244246,-518.1,0.00027671,2]
[354946758,1740838244255,-1523.64,0.00027671,2]
[354946760,1740838244264,-715.18719431,0.00027671,2]
[354946762,1740838244278,-548.50280569,0.00027671,2]
[354946764,1740838244287,-2167.42,0.00027671,2]
[354946766,1740838244296,-500.0,0.00027671,2]
[354946768,1740838244306,-581.67,0.00027671,2]
[354946770,1740838244315,-500.0,0.00027671,2]
[354946772,1740838244324,-520.37,0.00027671,2]
[354946774,1740838244334,-5512.69,0.00027671,2]
[354946775,1740838244343,-569.45396651,0.00027671,2]
[354946776,1740838244353,-776.45,0.00027671,2]
[354946777,1740838244362,-571.84,0.00027671,2]
[354946778,1740838244372,-1482.91,0.00027671,2]
[354946779,1740838244381,-1493.42,0.00027671,2]
[354946780,1740838244391,-805.63,0.00027671,2]
[354946781,1740838244401,-500.0,0.00027671,2]
[354946782,1740838244410,-543.09,0.00027671,2]
[354946783,1740838244419,-500.0,0.00027671,2]
[354946784,1740838244428,-990.72,0.00027671,2]
[354946785,1740838244438,-538.78,0.00027671,2]
[354946786,1740838244447,-1422.04,0.00027671,2]
[354946787,1740838244457,-1804.4,0.00027671,2]
[354946788,1740838244466,-500.0,0.00027671,2]
[354946789,1740838244476,-1537.5,0.00027671,2]
[354946790,1740838244486,-500.0,0.00027671,2]
[354946791,1740838244495,-506.37,0.00027671,2]
[354946792,1740838244504,-499.0,0.0002772,2]
[354946793,1740838244513,-499.0,0.0002772,2]
[354946795,1740838244522,-499.0,0.0002772,2]
[354946796,1740838244532,-499.0,0.0002772,2]
[354946798,1740838244541,-499.0,0.0002772,2]
[354946800,1740838244551,-499.0,0.0002772,2]
[354946802,1740838244560,-499.0,0.0002772,2]
[354946804,1740838244570,-499.0,0.0002772,2]
[354946806,1740838244580,-499.0,0.0002772,2]
[354946808,1740838244589,-499.0,0.0002772,2]
[354946810,1740838244603,-499.0,0.0002772,2]
[354946812,1740838244612,-499.0,0.0002772,2]
[354946814,1740838244621,-272.13039966,0.0002772,2]
[354946816,1740838244635,-226.86960034,0.0002772,2]
[354946818,1740838244645,-499.0,0.0002772,2]
[354946820,1740838244654,-499.0,0.0002772,2]
[354946822,1740838244664,-499.0,0.0002772,2]
[354946824,1740838244681,-499.0,0.0002772,2]
[354946826,1740838244691,-361.63039966,0.0002772,2]
[354946829,1740838244702,-137.36960034,0.0002772,2]
[354946831,1740838244712,-499.0,0.0002772,2]
[354946833,1740838244721,-499.0,0.0002772,2]
[354946835,1740838244731,-499.0,0.0002772,2]
[354946837,1740838244740,-499.0,0.0002772,2]
[354946838,1740838244749,-499.0,0.0002772,2]
[354946841,1740838244760,-499.0,0.0002772,2]
[354946842,1740838244769,-1000.0,0.0002779,10]
[354946844,1740838244779,-454.73266836,0.00027845,2]
[354946846,1740838244788,-500.0,0.00027845,2]
[354946848,1740838244799,-157.20566495,0.00027845,2]
[354946850,1740838244809,-164.39855321,0.00027845,2]
[354946852,1740838244820,-2576.15983649,0.00027845,2]
[354946855,1740838244830,-1165.19787066,0.00027866,4]
[354946857,1740838244841,-500.0,0.00027944,2]
[354946858,1740838244852,-500.0,0.00027944,2]
[354946861,1740838244862,-901.47,0.00027944,2]
[354946862,1740838244874,-1124.16,0.00027944,2]
[354946865,1740838244886,-961.44,0.00027944,2]
[354946867,1740838244896,-648.23,0.00027944,2]
[354946869,1740838244906,-500.0,0.00027944,2]
[354946870,1740838244916,-647.48,0.00027944,2]
[354946872,1740838244926,-1728.55,0.00027944,2]
[354946874,1740838244935,-1385.38,0.00027944,2]
[354946876,1740838244944,-1899.5,0.00027944,2]
[354946878,1740838244954,-1661.64,0.00027944,2]
[354946880,1740838244963,-537.76,0.00027944,2]
[354946882,1740838244973,-31882.46,0.00027944,2]
[354946884,1740838244983,-500.0,0.00027944,2]
[354946886,1740838244993,-1956.12,0.00027944,2]
[354946888,1740838245003,-5041.79,0.00027944,2]
[354946890,1740838245014,-9963.55353697,0.00027944,2]
[354946892,1740838245026,-10532.0,0.00027944,2]
[354946894,1740838245038,-392.44637573,0.00027944,2]
[354946918,1740838245259,-1382.8200873,0.00027944,2]
[354946920,1740838245269,-570.95,0.00027944,2]
[354946922,1740838245279,-3379.55369845,0.00027944,2]
[354946925,1740838245291,-542.00630155,0.00027944,2]
[354946927,1740838245300,-500.0,0.00027944,2]
[354946929,1740838245309,-415.85655254,0.00027944,2]
[354946931,1740838245321,-84.14344746,0.00027944,2]
[354946933,1740838245331,-192.152207,0.00027944,2]
[354946935,1740838245342,-709.00241687,0.00027944,2]
[354946937,1740838245354,-455.37695136,0.00027944,2]
[354946947,1740838245443,-5500.13842477,0.00027944,2]
[354946950,1740838245461,-1349.91,0.00027944,2]
[354946953,1740838245482,-500.0,0.00027944,2]
[354946956,1740838245499,-715.8,0.00027945,2]
[354946958,1740838245516,-500.0,0.00027945,2]
[354946961,1740838245529,-615.44,0.00027945,2]
[354946964,1740838245548,-500.0,0.00027945,2]
[354946966,1740838245565,-500.0,0.00027945,2]
[354946969,1740838245582,-669.45,0.00027945,2]
[354946972,1740838245601,-500.0,0.00027945,2]
[354946975,1740838245619,-705.8,0.00027945,2]
[354946977,1740838245636,-500.0,0.00027945,2]
[354946980,1740838245656,-500.0,0.00027945,2]
[354946983,1740838245671,-598.68,0.00027945,2]
[354946985,1740838245688,-500.0,0.00027945,2]
[354946988,1740838245704,-651.59,0.00027945,2]
[354946991,1740838245721,-524.52,0.00027945,2]
[354946993,1740838245735,-632.76,0.00027945,2]
[354946996,1740838245748,-500.0,0.00027945,2]
[354946998,1740838245762,-565.6,0.00027945,2]
[354947001,1740838245779,-752.23,0.00027945,2]
[354947003,1740838245795,-611.65,0.00027945,2]
[354947006,1740838245807,-390.17641531,0.00027945,2]
[354947008,1740838245820,-500.0,0.00027945,2]
[354947011,1740838245836,-640.6,0.00027945,2]
[354947013,1740838245848,-854.6,0.00027945,2]
[354947015,1740838245861,-500.0,0.00027945,2]
[354947018,1740838245880,-672.73,0.00027945,2]
[354947021,1740838245894,-738.31,0.00027945,2]
[354947023,1740838245908,-658.74,0.00027945,2]
[354947026,1740838245922,-1104.26,0.00027945,2]
[354947028,1740838245936,-602.48,0.00027945,2]
[354947030,1740838245950,-503.47,0.00027945,2]
[354947033,1740838245964,-606.65595211,0.00027945,2]